bitfinex/quotes_SOLUSD_20250928
["timestamp","ask_amount","ask_price","bid_price","bid_amount"]
[1759087810306,26.72,206.53,206.5,14.56841083]
[1759087810601,1.21325003,206.52,206.49,0.69]
[1759087810800,0.72,206.53,206.49,0.69]
[1759087810984,1.21325031,206.52,206.49,15.25841083]
[1759087811189,26.0,206.53,206.5,0.71]
[1759087811490,1.21325037,206.52,206.5,0.71]
[1759087811685,26.0,206.53,206.5,0.71]
[1759087811889,26.71,206.53,206.5,0.71]
[1759087812096,0.71,206.53,206.5,15.27841083]
[1759087813304,0.71,206.53,206.5,0.71]
[1759087814407,0.71,206.52,206.48,0.71]
[1759087814703,2.39377323,206.52,206.48,14.56841083]
[1759087815006,1.68377323,206.52,206.48,0.71]
[1759087815181,1.68377323,206.52,206.49,0.71]
[1759087816204,2.39377323,206.53,206.49,0.71]
[1759087816504,1.2132661,206.52,206.49,0.71]
[1759087816710,2.39377323,206.53,206.49,0.71]
[1759087816905,1.21326581,206.52,206.49,0.71]
[1759087817206,26.71,206.53,206.49,0.71]
[1759087817405,1.21326604,206.52,206.49,0.71]
[1759087817607,26.71,206.53,206.49,0.71]
[1759087817784,1.21326581,206.52,206.49,0.71]
[1759087817985,26.71,206.53,206.49,0.71]
[1759087818181,1.21326581,206.52,206.49,0.71]
[1759087818410,26.0,206.53,206.5,0.71]
[1759087818611,1.21326586,206.52,206.5,0.71]
[1759087818789,26.0,206.53,206.5,0.71]
[1759087818990,1.2132657,206.52,206.5,0.71]
[1759087819210,26.0,206.53,206.5,0.71]
[1759087819507,1.21325767,206.52,206.5,0.71]
[1759087819711,26.0,206.53,206.5,0.71]
[1759087819899,1.21325767,206.52,206.5,0.71]
[1759087820211,2.39377323,206.54,206.5,0.71]
[1759087820406,1.21325744,206.53,206.5,0.71]
[1759087820605,1.21325744,206.52,206.5,0.71]
[1759087820805,2.39377323,206.54,206.5,0.71]
[1759087821109,1.21325789,206.53,206.5,0.71]
[1759087821408,1.21325789,206.52,206.48,1.68377323]
[1759087821597,26.0,206.55,206.51,2.37377323]
[1759087821795,1.21316779,206.54,206.52,0.69]
[1759087822000,26.0,206.55,206.52,0.69]
[1759087822305,1.21316609,206.54,206.52,0.69]
[1759087822505,0.66,206.57,206.52,2.37377323]
[1759087822709,26.0,206.55,206.53,0.69]
[1759087822923,1.21316609,206.54,206.53,0.69]
[1759087825819,1.21316609,206.54,206.52,16.25006198]
[1759087826046,26.66,206.56,206.52,2.37377323]
[1759087826214,1.21308295,206.55,206.52,2.37377323]
[1759087826522,26.66,206.56,206.52,0.69]
[1759087826712,1.21308318,206.55,206.52,0.69]
[1759087826912,26.66,206.56,206.52,0.69]
[1759087827226,1.21308318,206.55,206.52,0.69]
[1759087827428,26.66,206.56,206.52,0.69]
[1759087827609,1.21308318,206.55,206.52,0.69]
[1759087827807,26.66,206.56,206.52,0.69]
[1759087828007,1.21308318,206.55,206.52,0.69]
[1759087828209,26.66,206.56,206.52,0.69]
[1759087828411,1.21308295,206.55,206.52,0.69]
[1759087828609,26.66,206.56,206.52,0.69]
[1759087828909,1.21308295,206.55,206.52,0.69]
[1759087829112,26.66,206.56,206.52,0.69]
[1759087829315,1.21308295,206.55,206.52,0.69]
[1759087829514,26.66,206.56,206.52,0.69]
[1759087829724,1.21308318,206.55,206.52,0.69]
[1759087829930,26.66,206.56,206.52,0.69]
[1759087830229,1.21308318,206.55,206.52,0.69]
[1759087830422,26.66,206.56,206.52,0.69]
[1759087830609,1.21308318,206.55,206.52,0.69]
[1759087830810,26.66,206.56,206.52,0.69]
[1759087831010,1.21308295,206.55,206.52,0.69]
[1759087831210,26.66,206.56,206.52,0.69]
[1759087831410,1.21308295,206.55,206.52,0.69]
[1759087831708,26.66,206.56,206.52,0.69]
[1759087831915,1.21308318,206.55,206.52,0.69]
[1759087832123,26.66,206.56,206.52,0.69]
[1759087832325,1.87308318,206.55,206.52,0.69]
[1759087832509,0.66,206.55,206.51,16.25006198]
[1759087832909,0.66,206.55,206.52,0.69]
[1759087835515,26.0,206.56,206.52,0.69]
[1759087835829,1.21308295,206.55,206.51,16.25006198]
[1759087836034,26.0,206.56,206.52,0.69]
[1759087836238,1.87308295,206.55,206.52,0.69]
[1759087836416,26.0,206.56,206.52,0.69]
[1759087836735,1.21308318,206.55,206.52,0.69]
[1759087836936,26.0,206.56,206.53,0.69]
[1759087837135,1.21308318,206.55,206.53,0.69]
[1759087837316,26.0,206.56,206.53,0.69]
[1759087837520,1.21308295,206.55,206.53,0.69]
[1759087837711,26.66,206.56,206.53,0.69]
[1759087837914,1.21308273,206.55,206.53,0.69]
[1759087838114,26.66,206.56,206.53,0.69]
[1759087838334,1.21308295,206.55,206.53,0.69]
[1759087838523,26.0,206.55,206.53,0.69]
[1759087842237,26.66,206.56,206.52,0.69]
[1759087842419,1.2130831,206.55,206.52,0.69]
[1759087842620,1.2130831,206.54,206.52,0.69]
[1759087842937,26.66,206.56,206.52,0.69]
[1759087843247,1.21308355,206.55,206.52,0.69]
[1759087843443,1.21308355,206.54,206.52,0.69]
[1759087843733,26.0,206.55,206.52,0.69]
[1759087843916,1.21308355,206.54,206.52,0.69]
[1759087844117,0.66,206.55,206.52,0.69]
[1759087844313,1.21308332,206.54,206.52,0.69]
[1759087844518,26.0,206.55,206.52,0.69]
[1759087844724,1.21308355,206.54,206.52,0.69]
[1759087844929,26.66,206.56,206.52,0.69]
[1759087845127,27.21308355,206.55,206.52,0.69]
[1759087845332,1.21308355,206.54,206.52,0.69]
[1759087845533,26.0,206.55,206.52,0.69]
[1759087845732,1.21308355,206.54,206.52,0.69]
[1759087845928,26.0,206.55,206.52,0.69]
[1759087846243,1.21308332,206.54,206.52,0.69]
[1759087846418,26.0,206.55,206.52,0.69]
[1759087846619,1.21308355,206.54,206.52,0.69]
[1759087846838,26.0,206.55,206.52,0.69]
[1759087847040,1.21308332,206.54,206.51,16.25006198]
[1759087847241,26.66,206.55,206.51,16.94006198]
[1759087847418,1.21308355,206.54,206.51,16.94006198]
[1759087847739,0.66,206.55,206.51,16.94006198]
[1759087847919,1.21308355,206.54,206.51,16.94006198]
[1759087848121,26.66,206.55,206.51,16.94006198]
[1759087848327,1.21308377,206.54,206.51,16.94006198]
[1759087848525,26.66,206.55,206.51,16.94006198]
[1759087848821,1.21308377,206.54,206.51,16.94006198]
[1759087849015,0.66,206.55,206.51,16.94006198]
[1759087849233,1.21308377,206.54,206.51,16.94006198]
[1759087849433,26.66,206.55,206.51,16.94006198]
[1759087849635,1.21308377,206.54,206.51,16.94006198]
[1759087849834,26.66,206.55,206.51,16.94006198]
[1759087850145,1.21308355,206.54,206.52,0.69]
[1759087850327,26.0,206.55,206.52,0.69]
[1759087850529,1.21308355,206.54,206.48,0.72]
[1759087850728,1.89308355,206.53,206.48,0.72]
[1759087850927,1.21308355,206.52,206.49,14.56841083]
[1759087851227,1.21308355,206.52,206.46,0.72]
[1759087851228,0.68,206.51,206.46,0.72]
[1759087851544,0.68,206.51,206.47,14.56841083]
[1759087851731,0.68,206.5,206.47,14.56841083]
[1759087852125,26.0,206.53,206.49,1.68377323]
[1759087852320,3.26933702,206.56,206.51,1.68377323]
[1759087852532,1.21316355,206.55,206.53,1.68377323]
[1759087852740,1.21316355,206.54,206.53,1.68377323]
[1759087853240,1.21316355,206.54,206.53,2.40377323]
[1759087854425,1.21316355,206.54,206.53,16.97006198]
[1759087856247,1.21316355,206.54,206.53,17.91690509]
[1759087856631,0.68,206.58,206.53,17.91690509]
[1759087856837,5.16275787,206.57,206.54,2.63061634]
[1759087857039,1.21310908,206.56,206.54,2.63061634]
[1759087857239,1.21310908,206.55,206.54,2.63061634]
[1759087858730,1.21310908,206.55,206.54,3.35061634]
[1759087860738,1.21310908,206.55,206.54,2.63061634]
[1759087860938,1.89310908,206.55,206.53,7.47272292]
[1759087861140,1.21310908,206.54,206.53,7.47272292]
[1759087861344,1.21310908,206.54,206.53,2.63061634]
[1759087861538,1.21310908,206.54,206.53,5.90038909]
[1759087861945,1.21310908,206.54,206.52,2.63061634]
[1759087862237,1.21310908,206.53,206.52,6.62096468]
[1759087863256,1.89310908,206.53,206.52,3.27034834]
[1759087863446,6.96862147,206.53,206.52,3.27034834]
[1759087864051,6.96862147,206.53,206.48,0.72]
[1759087864257,1.21310908,206.52,206.49,15.28770341]
[1759087864458,1.21310908,206.51,206.49,15.28770341]
[1759087864757,5.75551239,206.53,206.49,0.72]
[1759087864944,1.21323005,206.52,206.5,5.75551239]
[1759087865253,1.21323005,206.51,206.5,5.75551239]
[1759087865459,1.21323005,206.51,206.5,6.47551239]
[1759087865760,1.21323005,206.51,206.5,9.10612873]
[1759087866253,1.21323005,206.51,206.5,6.47551239]
[1759087866841,1.21323005,206.51,206.5,5.75551239]
[1759087867042,1.21323005,206.51,206.5,6.47551239]
[1759087868764,5.07551239,206.53,206.5,9.10612873]
[1759087868954,1.21321377,206.52,206.51,0.72]
[1759087872946,1.21321377,206.52,206.51,5.79551239]
[1759087873260,5.07551239,206.53,206.51,8.42612873]
[1759087873467,5.07551239,206.53,206.52,3.30061634]
[1759087873767,6.28871017,206.53,206.52,3.30061634]
[1759087874439,6.28871017,206.53,206.52,17.86761238]
[1759087876257,6.28871017,206.53,206.52,15.23699604]
[1759087876465,6.28871017,206.53,206.52,17.86761238]
[1759087877756,5.07551239,206.53,206.52,17.86761238]
[1759087878068,5.75551239,206.53,206.52,14.56699604]
[1759087878668,6.96870706,206.53,206.49,0.67]
[1759087878858,1.89319467,206.52,206.5,5.75551239]
[1759087879061,0.68,206.52,206.5,5.75551239]
[1759087879558,5.07551239,206.53,206.5,5.75551239]
[1759087879757,1.21321406,206.52,206.51,0.67]
[1759087880150,5.07551239,206.53,206.51,0.67]
[1759087880346,5.07551239,206.53,206.51,9.05612873]
[1759087880545,5.07551239,206.53,206.51,8.38612873]
[1759087880758,1.2131949,206.52,206.51,8.38612873]
[1759087880966,5.07551239,206.53,206.51,8.38612873]
[1759087881952,1.21321361,206.52,206.51,8.38612873]
[1759087882258,1.21321384,206.52,206.51,8.38612873]
[1759087884466,1.21321384,206.52,206.51,9.03612873]
[1759087885071,1.21321384,206.52,206.51,8.38612873]
[1759087885572,1.21321384,206.52,206.49,0.65]
[1759087885771,5.73551239,206.53,206.49,15.21841083]
[1759087885973,1.21322209,206.52,206.49,15.21841083]
[1759087886178,5.73551239,206.53,206.48,2.63061634]
[1759087886467,1.21322209,206.52,206.5,14.56841082]
[1759087886671,5.73551239,206.53,206.5,14.56841082]
[1759087886872,1.21322187,206.52,206.5,14.56841082]
[1759087887173,5.73551239,206.53,206.5,14.56841082]
[1759087887473,1.21322187,206.52,206.5,14.56841082]
[1759087887674,5.73551239,206.53,206.5,14.56841082]
[1759087887876,1.21322187,206.52,206.5,14.56841082]
[1759087888063,5.73551239,206.53,206.5,14.56841082]
[1759087888267,1.21322187,206.52,206.5,15.21841082]
[1759087888454,5.73551239,206.53,206.5,15.21841082]
[1759087888656,1.21322187,206.52,206.5,15.21841082]
[1759087888878,5.73551239,206.53,206.5,15.21841082]
[1759087889078,1.21322164,206.52,206.5,15.21841082]
[1759087889280,5.73551239,206.53,206.5,15.21841082]
[1759087889454,1.21322187,206.52,206.5,15.21841082]
[1759087889655,5.73551239,206.53,206.5,15.21841082]
[1759087889967,1.21322164,206.52,206.5,15.21841082]
[1759087890154,5.73551239,206.53,206.5,15.21841082]
[1759087890350,1.21322187,206.52,206.5,15.21841082]
[1759087890572,5.73551239,206.53,206.5,15.21841082]
[1759087890773,1.87322187,206.52,206.5,14.56841082]
[1759087890966,4.50383821,206.51,206.46,0.65]
[1759087891179,3.84390018,206.5,206.47,5.07551239]
[1759087891474,0.66,206.49,206.47,5.07551239]
[1759087892057,2.63061634,206.51,206.47,5.07551239]
[1759087892265,1.87332106,206.5,206.47,5.07551239]
[1759087892480,0.66,206.5,206.47,5.07551239]
[1759087892681,0.66,206.5,206.47,5.72551239]
[1759087892879,0.66,206.5,206.47,5.07551239]
[1759087892880,4.50395323,206.49,206.47,5.07551239]
[1759087893074,4.50395323,206.49,206.43,0.65]
[1759087893075,1.87333689,206.48,206.43,0.65]
[1759087893265,1.21333689,206.47,206.44,16.87621035]
[1759087893465,26.0,206.49,206.45,0.65]
[1759087893765,1.21345059,206.48,206.46,0.65]
[1759087893965,26.0,206.49,206.46,15.221949]
[1759087894178,1.21344991,206.48,206.46,14.571949]
[1759087894365,26.66,206.49,206.46,14.571949]
[1759087894564,1.21344969,206.48,206.46,14.571949]
[1759087894890,0.66,206.48,206.44,0.65]
[1759087895058,28.63061634,206.5,206.45,0.65]
[1759087895260,27.87344969,206.49,206.45,15.221949]
[1759087895478,26.66,206.49,206.45,15.221949]
[1759087897076,3.29061634,206.48,206.45,14.571949]
[1759087897256,4.50407428,206.47,206.4,2.63061634]
[1759087897458,1.87345794,206.46,206.4,3.28061634]
[1759087897657,0.66,206.46,206.39,35.53061634]
[1759087897860,0.66,206.46,206.4,0.65]
[1759087898081,3.29061634,206.46,206.43,14.571949]
[1759087898363,0.66,206.45,206.43,14.571949]
[1759087899174,28.63061634,206.47,206.44,0.65]
[1759087899376,0.66,206.49,206.45,0.65]
[1759087899377,26.0,206.48,206.45,0.65]
[1759087899576,26.0,206.5,206.43,14.571949]
[1759087899577,1.21360823,206.47,206.44,2.63061634]
[1759087899780,26.0,206.48,206.46,0.65]
[1759087900907,26.0,206.49,206.47,0.65]
[1759087901185,26.0,206.49,206.48,0.65]
[1759087901380,27.21351637,206.49,206.46,15.22124122]
[1759087901573,27.21351637,206.49,206.47,0.65]
[1759087901574,26.0,206.49,206.47,0.65]
[1759087901769,5.07551239,206.53,206.48,3.28061634]
[1759087902084,5.07551239,206.53,206.49,0.65]
[1759087902269,5.07551239,206.53,206.51,2.63061634]
[1759087902587,5.07551239,206.53,206.52,0.65]
[1759087902766,6.28880849,206.53,206.52,0.65]
[1759087903166,5.07551239,206.53,206.52,0.65]
[1759087903378,5.07551239,206.53,206.52,15.21770341]
[1759087904184,5.07551239,206.53,206.52,14.56770341]
[1759087904487,5.07551239,206.53,206.52,17.84831975]
[1759087905162,5.07551239,206.53,206.52,22.69046578]
[1759087908673,5.07551239,206.53,206.52,15.21770341]
[1759087908875,5.07551239,206.53,206.52,17.84831975]
[1759087912295,5.07551239,206.53,206.52,14.56770341]
[1759087912474,5.77551239,206.53,206.52,14.56770341]
[1759087912671,5.07551239,206.53,206.52,14.56770341]
[1759087913092,5.77551239,206.53,206.52,14.56770341]
[1759087913463,5.77551239,206.53,206.47,3.33061634]
[1759087913686,0.7,206.52,206.49,14.56911832]
[1759087914065,0.7,206.51,206.49,14.56911832]
[1759087914686,0.7,206.5,206.49,14.56911832]
[1759087915867,0.7,206.52,206.49,14.56911832]
[1759087916112,0.7,206.51,206.49,14.56911832]
[1759087916291,28.38499938,206.5,206.44,0.7]
[1759087916593,1.68499938,206.49,206.46,14.57053352]
[1759087916796,2.38499938,206.49,206.44,0.7]
[1759087916996,2.38499938,206.49,206.45,0.7]
[1759087917172,2.38499938,206.49,206.45,15.271949]
[1759087917674,0.7,206.49,206.45,15.271949]
[1759087919574,27.68499938,206.5,206.46,0.7]
[1759087919791,28.38499938,206.5,206.46,0.7]
[1759087919991,27.68499938,206.5,206.46,0.7]
[1759087920193,0.7,206.49,206.46,0.7]
[1759087921594,26.0,206.5,206.47,0.7]
[1759087921779,26.0,206.5,206.47,2.38499938]
[1759087922177,26.0,206.5,206.48,0.7]
[1759087923098,26.0,206.5,206.46,14.57053353]
[1759087923279,0.7,206.49,206.46,14.57053353]
[1759087923475,26.0,206.5,206.45,1.68499938]
[1759087923691,26.0,206.5,206.46,15.27053353]
[1759087923890,26.0,206.5,206.47,0.7]
[1759087924581,26.0,206.5,206.48,0.7]
[1759087924777,5.07551239,206.53,206.49,1.68499938]
[1759087924976,1.21340036,206.52,206.5,0.7]
[1759087925286,5.07551239,206.53,206.5,0.7]
[1759087925489,1.21340036,206.52,206.5,0.7]
[1759087925798,5.07551239,206.53,206.5,0.7]
[1759087926002,1.21340014,206.52,206.5,0.7]
[1759087926198,5.07551239,206.53,206.5,15.26841083]
[1759087926408,1.21340036,206.52,206.5,15.26841083]
[1759087926585,1.21340036,206.51,206.5,15.26841083]
[1759087926906,5.07551239,206.53,206.5,15.26841083]
[1759087927202,1.21340014,206.52,206.5,15.26841083]
[1759087927381,5.07551239,206.53,206.5,15.26841083]
[1759087927579,1.21340036,206.52,206.5,15.26841083]
[1759087927903,5.07551239,206.53,206.5,15.26841083]
[1759087928084,1.21340036,206.52,206.5,15.26841083]
[1759087928404,5.07551239,206.53,206.5,15.26841083]
[1759087928597,1.21340014,206.52,206.5,15.26841083]
[1759087928792,5.07551239,206.53,206.5,14.56841083]
[1759087928996,5.07551239,206.53,206.51,2.38499938]
[1759087929196,5.07551239,206.53,206.52,0.7]
[1759087929508,5.07551239,206.53,206.52,2.38499938]
[1759087929884,5.07551239,206.53,206.52,7.46051177]
[1759087930899,5.07551239,206.53,206.52,12.3026578]
[1759087933804,5.07551239,206.53,206.52,20.82273942]
[1759087934697,5.07551239,206.53,206.52,35.38478587]
[1759087936491,0.9,206.63,206.53,13.59559401]
[1759087936686,1.21287039,206.62,206.6,1.68499938]
[1759087936899,0.2,206.63,206.6,1.68499938]
[1759087937101,0.7,206.62,206.6,1.68499938]
[1759087937804,0.9,206.63,206.6,1.68499938]
[1759087938197,0.9,206.63,206.61,1.68499938]
[1759087938644,0.2,206.63,206.61,1.68499938]
[1759087938925,0.2,206.63,206.62,2.38499938]
[1759087939127,0.2,206.63,206.62,15.98059339]
[1759087940121,0.2,206.63,206.62,53.04059339]
[1759087940503,0.2,206.63,206.62,58.2900015]
[1759087941707,0.2,206.63,206.62,63.12980403]
[1759087943618,0.2,206.63,206.62,24.38480465]
[1759087943914,0.2,206.63,206.62,63.10980403]
[1759087944829,0.2,206.63,206.62,57.86039592]
[1759087945007,0.2,206.63,206.61,5.24940811]
[1759087945213,0.2,206.63,206.62,1.68499938]
[1759087945214,0.86,206.63,206.62,1.68499938]
[1759087945818,0.86,206.63,206.56,5.51097789]
[1759087946010,0.66,206.62,206.6,1.68499938]
[1759087946309,0.66,206.61,206.6,1.68499938]
[1759087946521,0.86,206.63,206.6,1.68499938]
[1759087946820,0.66,206.62,206.6,1.68499938]
[1759087947201,0.66,206.62,206.57,56.16651118]
[1759087947402,0.2,206.63,206.6,1.68499938]
[1759087947603,0.66,206.62,206.59,1.68499938]
[1759087947926,0.2,206.63,206.59,1.68499938]
[1759087947927,0.66,206.61,206.59,1.68499938]
[1759087948508,0.66,206.6,206.59,1.68499938]
[1759087949211,0.66,206.6,206.58,1.68499938]
[1759087949400,0.66,206.6,206.57,38.74499938]
[1759087950312,0.66,206.59,206.57,38.74499938]
[1759087951008,0.66,206.59,206.57,1.68499938]
[1759087951212,0.66,206.58,206.55,1.68499938]
[1759087951417,27.68499938,206.62,206.55,38.74499938]
[1759087951619,0.66,206.6,206.56,1.68499938]
[1759087951919,26.0,206.62,206.56,1.68499938]
[1759087951920,0.66,206.59,206.56,1.68499938]
[1759087952603,0.66,206.59,206.55,39.41499938]
[1759087954031,0.66,206.58,206.54,38.76499938]
[1759087954410,0.66,206.58,206.55,1.68499938]
[1759087955011,27.68499938,206.62,206.55,1.68499938]
[1759087955228,0.66,206.61,206.56,2.35499938]
[1759087955424,0.66,206.61,206.57,2.35499938]
[1759087955622,0.66,206.6,206.57,1.68499938]
[1759087956130,0.66,206.6,206.56,1.68499938]
[1759087956808,0.66,206.6,206.56,2.35499938]
[1759087960028,0.66,206.6,206.56,0.67]
[1759087960212,0.66,206.6,206.56,2.35499938]
[1759087962227,0.66,206.6,206.56,0.67]
[1759087969523,0.66,206.6,206.57,0.67]
[1759087972841,0.67,206.61,206.57,0.67]
[1759087973144,26.67,206.61,206.57,0.67]
[1759087973330,1.21291212,206.6,206.57,0.67]
[1759087973638,26.67,206.61,206.57,0.67]
[1759087973839,1.21291234,206.6,206.57,0.67]
[1759087974031,26.67,206.61,206.57,0.67]
[1759087974230,1.21291235,206.6,206.57,0.67]
[1759087974535,26.67,206.61,206.57,0.67]
[1759087974733,1.21291235,206.6,206.57,0.67]
[1759087974921,0.67,206.6,206.57,0.67]
[1759087975243,0.67,206.6,206.57,2.35499938]
[1759087976226,0.67,206.6,206.57,3.29993974]
[1759087978737,26.0,206.61,206.57,3.29993974]
[1759087978945,1.21286691,206.6,206.57,3.29993974]
[1759087979257,0.67,206.59,206.55,0.66]
[1759087979419,0.67,206.59,206.55,3.28993974]
[1759087979738,26.0,206.61,206.56,0.66]
[1759087979942,27.88291235,206.6,206.56,0.66]
[1759087980138,26.0,206.6,206.57,2.62993974]
[1759087980441,26.0,206.61,206.58,0.66]
[1759087980640,1.21286668,206.6,206.58,0.66]
[1759087980842,26.0,206.61,206.58,0.66]
[1759087981030,1.21286691,206.6,206.58,0.66]
[1759087981338,26.0,206.61,206.58,0.66]
[1759087982022,1.21286668,206.6,206.57,3.28993974]
[1759087982222,26.67,206.61,206.57,3.28993974]
[1759087982423,1.21287471,206.6,206.57,3.28993974]
[1759087982741,26.67,206.61,206.57,3.28993974]
[1759087982920,1.21287493,206.6,206.57,3.28993974]
[1759087983120,26.67,206.61,206.57,3.28993974]
[1759087983420,1.21287493,206.6,206.57,3.28993974]
[1759087983621,26.67,206.61,206.57,3.28993974]
[1759087983857,1.21287471,206.6,206.57,3.28993974]
[1759087984021,26.67,206.61,206.57,3.28993974]
[1759087984224,1.21287493,206.6,206.54,37.08]
[1759087984422,1.21291302,206.59,206.55,3.28993974]
[1759087984645,26.67,206.61,206.56,0.66]
[1759087984950,1.21287561,206.6,206.57,0.66]
[1759087985151,26.67,206.61,206.57,3.28993974]
[1759087985444,1.88286713,206.6,206.57,2.62993974]
[1759087985656,0.67,206.6,206.57,2.62993974]
[1759087987253,1.21287493,206.59,206.57,3.28993974]
[1759087987436,26.67,206.61,206.57,3.28993974]
[1759087987637,1.21287516,206.6,206.57,3.28993974]
[1759087987954,1.21287516,206.59,206.57,2.62993974]
[1759087988130,26.67,206.61,206.57,3.28993974]
[1759087988330,1.21287516,206.6,206.57,3.28993974]
[1759087988529,1.21287516,206.59,206.57,3.28993974]
[1759087988731,26.67,206.61,206.57,3.28993974]
[1759087988927,1.21287504,206.6,206.57,0.66]
[1759087989136,1.21287504,206.59,206.57,0.66]
[1759087989447,26.0,206.61,206.57,0.66]
[1759087989633,1.21287504,206.6,206.57,0.66]
[1759087989834,1.21287504,206.59,206.57,0.66]
[1759087990037,1.21291246,206.58,206.56,3.28993974]
[1759087990259,0.67,206.6,206.56,3.28993974]
[1759087990445,1.21291246,206.59,206.56,3.28993974]
[1759087990642,1.21291246,206.58,206.56,3.28993974]
[1759087990843,0.67,206.6,206.57,0.66]
[1759087991143,1.21291223,206.59,206.57,0.66]
[1759087991456,0.67,206.6,206.57,0.66]
[1759087991649,1.21287482,206.59,206.57,0.66]
[1759087991953,26.7,206.61,206.57,0.66]
[1759087992258,1.21287459,206.6,206.57,0.66]
[1759087992441,1.21287459,206.59,206.57,0.66]
[1759087992643,1.21287459,206.58,206.57,0.66]
[1759087994153,1.21287459,206.58,206.57,15.22346028]
[1759087999756,1.21287459,206.58,206.57,14.56346028]
[1759087999937,1.21287459,206.58,206.57,15.27346028]
[1759088005264,1.21287459,206.58,206.57,17.90340002]
[1759088005466,0.2,206.63,206.57,22.74437402]
[1759088005672,1.21276813,206.62,206.61,2.62993974]
[1759088006045,1.21276813,206.62,206.61,8.59934785]
[1759088011848,1.21276813,206.62,206.61,13.43938463]
[1759088012054,0.2,206.63,206.61,13.43938463]
[1759088012286,0.2,206.63,206.62,3.34993974]
[1759088012668,0.2,206.63,206.62,8.59934785]
[1759088014279,0.88,206.63,206.62,5.24940811]
[1759088014581,1.41257213,206.63,206.62,5.24940811]
[1759088014959,1.41257213,206.63,206.62,7.87934785]
[1759088015167,0.2,206.63,206.62,8.59934785]
[1759088015376,0.2,206.63,206.62,7.87934785]
[1759088016193,0.2,206.63,206.62,8.59934785]
[1759088016682,0.2,206.63,206.62,7.87934785]
[1759088017179,0.2,206.63,206.62,5.24940811]
[1759088018381,1.41268428,206.63,206.62,5.24940811]
[1759088019957,1.41268428,206.63,206.62,7.87934785]
[1759088020158,0.2,206.63,206.62,8.59934785]
[1759088020655,0.2,206.63,206.62,13.43915038]
[1759088023175,0.2,206.63,206.62,27.03474439]
[1759088025966,0.2,206.63,206.62,64.05474439]
[1759088032191,0.2,206.63,206.62,90.05474439]
[1759088035571,0.7,206.74,206.65,39.59559401]
[1759088035784,5.70485801,206.74,206.73,2.62993974]
[1759088035989,5.70485801,206.74,206.73,39.64993974]
[1759088036231,5.70485801,206.74,206.73,45.35479775]
[1759088036998,5.00485801,206.74,206.73,45.35479775]
[1759088038183,5.00485801,206.74,206.73,49.24233153]
[1759088038692,5.00485801,206.74,206.73,44.40510423]
[1759088038896,5.70485801,206.74,206.73,44.40510423]
[1759088040393,5.70485801,206.74,206.73,7.38510423]
[1759088040707,5.00485801,206.74,206.73,44.38510423]
[1759088041578,5.00485801,206.74,206.73,63.53792554]
[1759088044201,0.2,206.76,206.74,13.59559401]
[1759088044509,0.2,206.76,206.75,78.31584023]
[1759088044812,0.2,206.76,206.75,80.97528119]
[1759088045192,0.2,206.77,206.76,13.59559401]
[1759088045378,0.2,206.8,206.76,15.99584023]
[1759088045581,0.2,206.8,206.78,21.99682511]
[1759088045783,0.2,206.8,206.78,59.03682511]
[1759088046087,0.2,206.8,206.79,27.55264889]
[1759088046292,0.2,206.8,206.79,19.15141779]
[1759088046496,0.2,206.8,206.79,29.49161978]
[1759088046689,0.2,206.8,206.79,22.7706349]
[1759088046896,0.2,206.8,206.79,59.8306349]
[1759088047603,0.2,206.8,206.79,54.27481112]
[1759088048687,0.2,206.8,206.79,52.5945649]
[1759088049009,0.2,206.8,206.79,54.27481112]
[1759088052916,0.2,206.8,206.79,54.29481112]
[1759088053213,0.2,206.8,206.79,59.1306349]
[1759088053514,0.2,206.8,206.79,59.8006349]
[1759088059509,0.2,206.8,206.79,59.0906349]
[1759088061298,0.86,206.8,206.79,1.93897089]